[Event "Early-Titled-Tuesday-Blitz-October-24-2023"]
[Site "Chess.com"]
[Date "2023.10.24"]
[Round "9"]
[White "Nekoo04"]
[Black "Lady_Nika"]
[Result "0-1"]
[WhiteElo "2297"]
[BlackElo "2483"]
[TimeControl "180+1"]
[EndTime "9:40:55 PDT"]
[Termination "Lady_Nika won on time"]

1. d4 {[%clk 0:03:00.8]} 1... d5 {[%clk 0:02:57.9]} 2. c4 {[%clk 0:03:00.8]}
2... e6 {[%clk 0:02:50.2]} 3. Nf3 {[%clk 0:02:59.8]} 3... f5 {[%clk 0:02:49.1]}
4. Nc3 {[%clk 0:02:57.7]} 4... Nf6 {[%clk 0:02:48.8]} 5. g3 {[%clk 0:02:58.2]}
5... c6 {[%clk 0:02:48.7]} 6. Bg2 {[%clk 0:02:58.3]} 6... Bd6 {[%clk 0:02:48.3]}
7. O-O {[%clk 0:02:57.4]} 7... O-O {[%clk 0:02:48.4]} 8. Qc2 {[%clk 0:02:58]}
8... Ne4 {[%clk 0:02:46.1]} 9. Rb1 {[%clk 0:02:55.3]} 9... Nd7 {[%clk 0:02:46]}
10. b4 {[%clk 0:02:53.6]} 10... Qe7 {[%clk 0:02:45.5]} 11. c5 {[%clk 0:02:49.1]}
11... Bc7 {[%clk 0:02:45.6]} 12. b5 {[%clk 0:01:44.7]} 12... e5 {[%clk
0:02:40.8]} 13. e3 {[%clk 0:01:44.9]} 13... Nxc3 {[%clk 0:02:40]} 14. Qxc3
{[%clk 0:01:44.9]} 14... e4 {[%clk 0:02:40.4]} 15. Nd2 {[%clk 0:01:38.9]} 15...
Nf6 {[%clk 0:02:39.5]} 16. a4 {[%clk 0:01:03.2]} 16... g5 {[%clk 0:02:36.6]} 17.
b6 {[%clk 0:00:57.5]} 17... axb6 {[%clk 0:02:36.1]} 18. cxb6 {[%clk 0:00:58.4]}
18... Bd6 {[%clk 0:02:35.8]} 19. a5 {[%clk 0:00:56.6]} 19... f4 {[%clk
0:02:32.1]} 20. gxf4 {[%clk 0:00:49.8]} 20... gxf4 {[%clk 0:02:31.6]} 21. exf4
{[%clk 0:00:50.4]} 21... Bxf4 {[%clk 0:02:31.3]} 22. Re1 {[%clk 0:00:28.8]}
22... Ng4 {[%clk 0:02:26.7]} 23. Nf1 {[%clk 0:00:23]} 23... Bxc1 {[%clk
0:02:23.6]} 24. Rbxc1 {[%clk 0:00:21.7]} 24... Nxf2 {[%clk 0:02:21]} 25. Re3
{[%clk 0:00:18.2]} 25... Kh8 {[%clk 0:02:18]} 26. Rce1 {[%clk 0:00:16.1]} 26...
Be6 {[%clk 0:02:17.8]} 27. Rg3 {[%clk 0:00:06.4]} 27... Rf6 {[%clk 0:02:14.8]}
28. Re2 {[%clk 0:00:03.7]} 28... Nd3 {[%clk 0:02:13.3]} 29. Ne3 {[%clk
0:00:03.4]} 29... Raf8 {[%clk 0:02:12.5]} 30. h3 {[%clk 0:00:02.9]} 30... Qd6
{[%clk 0:02:11.2]} 31. Rg5 {[%clk 0:00:02.1]} 31... Qf4 {[%clk 0:02:10.4]} 32.
Re5 {[%clk 0:00:02.1]} 32... Nxe5 {[%clk 0:02:09.9]} 33. dxe5 {[%clk 0:00:03]}
33... Rg6 {[%clk 0:02:10.1]} 34. Qd4 {[%clk 0:00:02.6]} 34... Rfg8 {[%clk
0:02:08.7]} 35. Ng4 {[%clk 0:00:02.6]} 35... h5 {[%clk 0:02:07.5]} 36. Nf6
{[%clk 0:00:02]} 36... Qf3 {[%clk 0:02:01.2]} 0-1

[Event "Early-Titled-Tuesday-Blitz-October-24-2023"]
[Site "Chess.com"]
[Date "2023.10.24"]
[Round "9"]
[White "Larina_Maria"]
[Black "abelmat"]
[Result "1-0"]
[WhiteElo "2232"]
[BlackElo "2001"]
[TimeControl "180+1"]
[EndTime "9:41:01 PDT"]
[Termination "Larina_Maria won on time"]

1. e4 {[%clk 0:02:56.3]} 1... e6 {[%clk 0:02:51.7]} 2. Nf3 {[%clk 0:02:53.8]}
2... d5 {[%clk 0:02:51.4]} 3. e5 {[%clk 0:02:54.1]} 3... c5 {[%clk 0:02:50]} 4.
b4 {[%clk 0:02:53.7]} 4... cxb4 {[%clk 0:02:48.1]} 5. a3 {[%clk 0:02:53.6]} 5...
Ne7 {[%clk 0:02:35.2]} 6. axb4 {[%clk 0:02:51.1]} 6... Ng6 {[%clk 0:02:33.6]} 7.
c3 {[%clk 0:02:48.4]} 7... Be7 {[%clk 0:02:33.2]} 8. d4 {[%clk 0:02:46.7]} 8...
O-O {[%clk 0:02:33.1]} 9. Bd3 {[%clk 0:02:44.4]} 9... a5 {[%clk 0:02:31.8]} 10.
h4 {[%clk 0:02:37]} 10... Nc6 {[%clk 0:01:57.4]} 11. h5 {[%clk 0:02:19.4]} 11...
Nh8 {[%clk 0:01:56.1]} 12. b5 {[%clk 0:02:18.4]} 12... Na7 {[%clk 0:01:50.6]}
13. Qc2 {[%clk 0:02:00.7]} 13... g6 {[%clk 0:01:42.8]} 14. Bh6 {[%clk
0:01:53.6]} 14... Re8 {[%clk 0:01:32.8]} 15. Rh3 {[%clk 0:01:20.7]} 15... Bd7
{[%clk 0:01:14.9]} 16. Rg3 {[%clk 0:01:14.2]} 16... Nxb5 {[%clk 0:00:42.9]} 17.
hxg6 {[%clk 0:01:12]} 17... hxg6 {[%clk 0:00:22.3]} 18. Bxg6 {[%clk 0:01:09.2]}
18... fxg6 {[%clk 0:00:05.6]} 19. Rxg6+ {[%clk 0:01:10.1]} 1-0

[Event "Early-Titled-Tuesday-Blitz-October-24-2023"]
[Site "Chess.com"]
[Date "2023.10.24"]
[Round "9"]
[White "FGHSMN"]
[Black "Sokoloco"]
[Result "0-1"]
[WhiteElo "2878"]
[BlackElo "2762"]
[TimeControl "180+1"]
[EndTime "9:41:03 PDT"]
[Termination "Sokoloco won by resignation"]

1. d4 {[%clk 0:03:00.2]} 1... d6 {[%clk 0:03:00.9]} 2. Nf3 {[%clk 0:03:00.2]}
2... g6 {[%clk 0:03:01.2]} 3. e4 {[%clk 0:02:59.8]} 3... Bg7 {[%clk 0:03:01.5]}
4. Nc3 {[%clk 0:03:00.3]} 4... a6 {[%clk 0:03:02.1]} 5. a4 {[%clk 0:02:59.3]}
5... b6 {[%clk 0:03:02]} 6. Be2 {[%clk 0:02:58.1]} 6... Bb7 {[%clk 0:03:02.4]}
7. O-O {[%clk 0:02:58.4]} 7... Nf6 {[%clk 0:03:03.1]} 8. d5 {[%clk 0:02:55.8]}
8... O-O {[%clk 0:02:56]} 9. Be3 {[%clk 0:02:47.1]} 9... c6 {[%clk 0:02:47.9]}
10. Qd2 {[%clk 0:02:45.7]} 10... Nbd7 {[%clk 0:02:39.4]} 11. Rad1 {[%clk
0:02:39.8]} 11... Nc5 {[%clk 0:02:37.1]} 12. dxc6 {[%clk 0:02:27]} 12... Bxc6
{[%clk 0:02:33.5]} 13. e5 {[%clk 0:02:27.5]} 13... Nfe4 {[%clk 0:02:22.3]} 14.
Nxe4 {[%clk 0:02:26.2]} 14... Nxe4 {[%clk 0:02:23.2]} 15. Qb4 {[%clk 0:02:24.8]}
15... a5 {[%clk 0:02:10.7]} 16. Qa3 {[%clk 0:02:18.3]} 16... Qc7 {[%clk
0:01:55.1]} 17. exd6 {[%clk 0:02:14.5]} 17... Nxd6 {[%clk 0:01:56]} 18. Nd4
{[%clk 0:02:13.7]} 18... Bd7 {[%clk 0:01:52.3]} 19. c3 {[%clk 0:02:08.8]} 19...
Nc4 {[%clk 0:01:47.8]} 20. Bxc4 {[%clk 0:02:06.3]} 20... Qxc4 {[%clk 0:01:48.7]}
21. Qxe7 {[%clk 0:01:44]} 21... Bxa4 {[%clk 0:01:45.8]} 22. Rd2 {[%clk 0:01:44]}
22... Rfe8 {[%clk 0:01:35.5]} 23. Qd6 {[%clk 0:01:37.8]} 23... Be5 {[%clk
0:01:13.7]} 24. Qa3 {[%clk 0:01:37.7]} 24... Bd7 {[%clk 0:01:01.1]} 25. Nf3
{[%clk 0:01:35]} 25... Bc6 {[%clk 0:01:01.2]} 26. Nxe5 {[%clk 0:01:32.3]} 26...
Rxe5 {[%clk 0:01:02.1]} 27. Rd4 {[%clk 0:01:29.9]} 27... Qe2 {[%clk 0:00:56.8]}
28. h4 {[%clk 0:01:20.4]} 28... Rxe3 {[%clk 0:00:53.1]} 29. Qd6 {[%clk
0:01:06.2]} 29... Rae8 {[%clk 0:00:52.6]} 30. Qxc6 {[%clk 0:01:04.4]} 30...
Qxf1+ {[%clk 0:00:52.7]} 31. Kh2 {[%clk 0:00:57.9]} 31... Qxf2 {[%clk 0:00:53]}
32. Rg4 {[%clk 0:00:53.9]} 32... Re1 {[%clk 0:00:49.5]} 0-1

[Event "Early-Titled-Tuesday-Blitz-October-24-2023"]
[Site "Chess.com"]
[Date "2023.10.24"]
[Round "9"]
[White "Kostya0705"]
[Black "verrbaa"]
[Result "0-1"]
[WhiteElo "2592"]
[BlackElo "2452"]
[TimeControl "180+1"]
[EndTime "9:41:03 PDT"]
[Termination "verrbaa won by resignation"]

1. e4 {[%clk 0:03:00.9]} 1... e5 {[%clk 0:02:56.7]} 2. Nf3 {[%clk 0:03:01.4]}
2... Nc6 {[%clk 0:02:56]} 3. Bc4 {[%clk 0:03:02]} 3... Nf6 {[%clk 0:02:55.3]} 4.
d4 {[%clk 0:03:02.5]} 4... exd4 {[%clk 0:02:50.8]} 5. e5 {[%clk 0:03:03.4]} 5...
d5 {[%clk 0:02:50.8]} 6. Bb5 {[%clk 0:03:04]} 6... Ne4 {[%clk 0:02:50.3]} 7.
Nxd4 {[%clk 0:03:04.6]} 7... Bd7 {[%clk 0:02:49.5]} 8. Bxc6 {[%clk 0:03:05.5]}
8... bxc6 {[%clk 0:02:49]} 9. O-O {[%clk 0:03:06.4]} 9... Be7 {[%clk 0:02:46.3]}
10. f3 {[%clk 0:03:06.7]} 10... Nc5 {[%clk 0:02:40.8]} 11. f4 {[%clk 0:03:07.6]}
11... Ne4 {[%clk 0:02:27.2]} 12. Nd2 {[%clk 0:03:07.3]} 12... Nxd2 {[%clk
0:02:16.2]} 13. Bxd2 {[%clk 0:03:08.2]} 13... c5 {[%clk 0:02:12.3]} 14. Nf3
{[%clk 0:03:07.6]} 14... O-O {[%clk 0:02:08.8]} 15. Qe2 {[%clk 0:03:06.3]} 15...
Bf5 {[%clk 0:02:00]} 16. c3 {[%clk 0:03:04.7]} 16... Rb8 {[%clk 0:01:33.9]} 17.
Be3 {[%clk 0:03:02.7]} 17... Qc8 {[%clk 0:01:31.9]} 18. Rfd1 {[%clk 0:03:00.9]}
18... Rd8 {[%clk 0:01:29.7]} 19. h3 {[%clk 0:02:59.8]} 19... h6 {[%clk 0:01:28]}
20. Bf2 {[%clk 0:02:56.7]} 20... Qb7 {[%clk 0:01:25.1]} 21. b3 {[%clk
0:02:56.1]} 21... a5 {[%clk 0:01:21.9]} 22. Rd2 {[%clk 0:02:52.9]} 22... Ra8
{[%clk 0:01:18.2]} 23. Re1 {[%clk 0:02:48.7]} 23... a4 {[%clk 0:01:16.6]} 24. g4
{[%clk 0:02:45]} 24... Be4 {[%clk 0:01:15.2]} 25. f5 {[%clk 0:02:41.7]} 25...
axb3 {[%clk 0:01:09.4]} 26. axb3 {[%clk 0:02:42.6]} 26... Qxb3 {[%clk
0:01:05.3]} 27. Qe3 {[%clk 0:02:30.2]} 27... Ra3 {[%clk 0:00:56.8]} 28. f6
{[%clk 0:02:29]} 28... Bf8 {[%clk 0:00:55.1]} 29. Nh4 {[%clk 0:02:07]} 29... Re8
{[%clk 0:00:54.6]} 30. Rc1 {[%clk 0:01:31.2]} 30... Rxe5 {[%clk 0:00:52.2]} 31.
Bg3 {[%clk 0:01:30.5]} 31... Re6 {[%clk 0:00:51.7]} 32. fxg7 {[%clk 0:01:27.7]}
32... Bxg7 {[%clk 0:00:51.6]} 33. Qxc5 {[%clk 0:01:26.4]} 33... Bxc3 {[%clk
0:00:46.9]} 34. Rf2 {[%clk 0:01:12.3]} 34... Ba5 {[%clk 0:00:46.4]} 35. Bf4
{[%clk 0:01:00.4]} 35... Bb6 {[%clk 0:00:45.2]} 0-1

[Event "Early-Titled-Tuesday-Blitz-October-24-2023"]
[Site "Chess.com"]
[Date "2023.10.24"]
[Round "9"]
[White "mbachez"]
[Black "zeebraa"]
[Result "1-0"]
[WhiteElo "2504"]
[BlackElo "2349"]
[TimeControl "180+1"]
[EndTime "9:41:04 PDT"]
[Termination "mbachez won by resignation"]

1. e4 {[%clk 0:03:00.9]} 1... e5 {[%clk 0:02:59.4]} 2. Nf3 {[%clk 0:02:58.4]}
2... Nc6 {[%clk 0:02:59.9]} 3. Bb5 {[%clk 0:02:57.4]} 3... a6 {[%clk 0:02:59.4]}
4. Ba4 {[%clk 0:02:57.5]} 4... Nf6 {[%clk 0:02:59.2]} 5. d3 {[%clk 0:02:57.8]}
5... Be7 {[%clk 0:02:55.7]} 6. O-O {[%clk 0:02:57]} 6... d6 {[%clk 0:02:54.9]}
7. Re1 {[%clk 0:02:55.3]} 7... b5 {[%clk 0:02:52.7]} 8. Bb3 {[%clk 0:02:54.4]}
8... O-O {[%clk 0:02:52.2]} 9. c3 {[%clk 0:02:54.2]} 9... Nb8 {[%clk 0:02:50.3]}
10. Nbd2 {[%clk 0:02:52.7]} 10... Nbd7 {[%clk 0:02:50.4]} 11. Nf1 {[%clk
0:02:52.6]} 11... h6 {[%clk 0:02:47.3]} 12. Ng3 {[%clk 0:02:52.4]} 12... Re8
{[%clk 0:02:47]} 13. Nh4 {[%clk 0:02:49.1]} 13... Bb7 {[%clk 0:02:42.4]} 14.
Nhf5 {[%clk 0:02:48.7]} 14... Bf8 {[%clk 0:02:36.6]} 15. Qf3 {[%clk 0:02:48.6]}
15... Nc5 {[%clk 0:02:26.5]} 16. Bc2 {[%clk 0:02:32.6]} 16... d5 {[%clk
0:02:20.5]} 17. b4 {[%clk 0:02:27.3]} 17... dxe4 {[%clk 0:02:19.8]} 18. dxe4
{[%clk 0:02:26.6]} 18... Ne6 {[%clk 0:02:04.6]} 19. Rd1 {[%clk 0:02:24.6]} 19...
Bd6 {[%clk 0:01:58.7]} 20. h4 {[%clk 0:02:11.3]} 20... Nf4 {[%clk 0:01:28.7]}
21. Nxd6 {[%clk 0:02:07.9]} 21... cxd6 {[%clk 0:01:27.7]} 22. Bxf4 {[%clk
0:02:07.4]} 22... exf4 {[%clk 0:01:27.8]} 23. Qxf4 {[%clk 0:02:07.5]} 23... Qe7
{[%clk 0:01:07.5]} 24. Nf5 {[%clk 0:01:52.3]} 24... Qe5 {[%clk 0:00:58.2]} 25.
Qxe5 {[%clk 0:01:52.2]} 25... Rxe5 {[%clk 0:00:51.8]} 26. Nxd6 {[%clk
0:01:50.7]} 26... Bc6 {[%clk 0:00:27.6]} 27. Bb3 {[%clk 0:01:45.3]} 27... Nxe4
{[%clk 0:00:24.7]} 28. Nxf7 {[%clk 0:01:44]} 28... Rh5 {[%clk 0:00:06.7]} 29.
Ne5+ {[%clk 0:01:43.4]} 29... Kh7 {[%clk 0:00:06.8]} 30. Nxc6 {[%clk 0:01:43.3]}
30... Rxh4 {[%clk 0:00:05.8]} 31. Rd4 {[%clk 0:01:41.4]} 31... g5 {[%clk
0:00:03.5]} 32. Bc2 {[%clk 0:01:39.5]} 1-0

[Event "Early-Titled-Tuesday-Blitz-October-24-2023"]
[Site "Chess.com"]
[Date "2023.10.24"]
[Round "9"]
[White "pedro_gines"]
[Black "CristianS27"]
[Result "1-0"]
[WhiteElo "2747"]
[BlackElo "2560"]
[TimeControl "180+1"]
[EndTime "9:41:14 PDT"]
[Termination "pedro_gines won on time"]

1. Nf3 {[%clk 0:02:54]} 1... Nf6 {[%clk 0:02:57.2]} 2. b3 {[%clk 0:02:54.6]}
2... g6 {[%clk 0:02:57.3]} 3. Bb2 {[%clk 0:02:55.5]} 3... Bg7 {[%clk 0:02:57.3]}
4. g3 {[%clk 0:02:56.4]} 4... c5 {[%clk 0:02:56.8]} 5. Bg2 {[%clk 0:02:56.1]}
5... d6 {[%clk 0:02:54.6]} 6. d4 {[%clk 0:02:55.4]} 6... cxd4 {[%clk 0:02:53.9]}
7. Nxd4 {[%clk 0:02:56.3]} 7... d5 {[%clk 0:02:53.5]} 8. O-O {[%clk 0:02:54.4]}
8... O-O {[%clk 0:02:52.5]} 9. c4 {[%clk 0:02:54.2]} 9... e5 {[%clk 0:02:47.7]}
10. Nf3 {[%clk 0:02:52.8]} 10... e4 {[%clk 0:02:48.3]} 11. Nd4 {[%clk
0:02:53.3]} 11... Nc6 {[%clk 0:02:48.9]} 12. cxd5 {[%clk 0:02:30.1]} 12... Qxd5
{[%clk 0:02:41.3]} 13. Nxc6 {[%clk 0:02:30.4]} 13... Qxc6 {[%clk 0:02:34.2]} 14.
Nc3 {[%clk 0:02:30.5]} 14... Bf5 {[%clk 0:02:27.9]} 15. Rc1 {[%clk 0:02:21.1]}
15... Rfd8 {[%clk 0:02:19.9]} 16. Qe1 {[%clk 0:02:21.6]} 16... Qe6 {[%clk
0:02:14.8]} 17. Nb5 {[%clk 0:02:18.7]} 17... Qb6 {[%clk 0:01:52.7]} 18. Na3
{[%clk 0:02:10.7]} 18... e3 {[%clk 0:01:43.9]} 19. f3 {[%clk 0:02:03.7]} 19...
Rac8 {[%clk 0:01:39.1]} 20. Rxc8 {[%clk 0:02:02.5]} 20... Rxc8 {[%clk
0:01:36.5]} 21. Nc4 {[%clk 0:02:02.5]} 21... Qa6 {[%clk 0:01:36.3]} 22. g4
{[%clk 0:02:02.3]} 22... Be6 {[%clk 0:01:34.9]} 23. g5 {[%clk 0:02:02.2]} 23...
Nh5 {[%clk 0:01:30.1]} 24. Bxg7 {[%clk 0:02:01.5]} 24... Nxg7 {[%clk 0:01:26.7]}
25. Nxe3 {[%clk 0:01:57.8]} 25... Qxa2 {[%clk 0:01:23.8]} 26. Qb4 {[%clk
0:01:50.5]} 26... Qxe2 {[%clk 0:01:12.1]} 27. Re1 {[%clk 0:01:50.8]} 27... Qa2
{[%clk 0:00:56.6]} 28. Ng4 {[%clk 0:01:44.2]} 28... Bxg4 {[%clk 0:00:43.7]} 29.
fxg4 {[%clk 0:01:45.1]} 29... Ne6 {[%clk 0:00:37.9]} 30. Qxb7 {[%clk 0:01:40.2]}
30... Rc2 {[%clk 0:00:28.3]} 31. Qb8+ {[%clk 0:01:20.9]} 1-0

[Event "Early-Titled-Tuesday-Blitz-October-24-2023"]
[Site "Chess.com"]
[Date "2023.10.24"]
[Round "9"]
[White "ExcitingTrap"]
[Black "balachess2006"]
[Result "1-0"]
[WhiteElo "2422"]
[BlackElo "2568"]
[TimeControl "180+1"]
[EndTime "9:41:14 PDT"]
[Termination "ExcitingTrap won by resignation"]

1. e4 {[%clk 0:03:00.9]} 1... c5 {[%clk 0:02:55.6]} 2. Nf3 {[%clk 0:03:00.8]}
2... Nc6 {[%clk 0:02:53.6]} 3. d4 {[%clk 0:03:01.3]} 3... cxd4 {[%clk
0:02:54.5]} 4. Nxd4 {[%clk 0:03:02]} 4... g6 {[%clk 0:02:53.9]} 5. c4 {[%clk
0:03:01.1]} 5... Nf6 {[%clk 0:02:54.1]} 6. Nc3 {[%clk 0:03:00.8]} 6... Nxd4
{[%clk 0:02:54.5]} 7. Qxd4 {[%clk 0:03:00.2]} 7... d6 {[%clk 0:02:55.4]} 8. Be3
{[%clk 0:03:00.5]} 8... Bg7 {[%clk 0:02:55.6]} 9. Qd2 {[%clk 0:03:00.2]} 9...
O-O {[%clk 0:02:55.9]} 10. Bd3 {[%clk 0:02:56.7]} 10... Ng4 {[%clk 0:02:53.9]}
11. Bf4 {[%clk 0:02:56]} 11... Be6 {[%clk 0:02:52.6]} 12. O-O {[%clk 0:02:48.5]}
12... Rc8 {[%clk 0:02:44.4]} 13. b3 {[%clk 0:02:46.6]} 13... Re8 {[%clk
0:02:31.4]} 14. Rac1 {[%clk 0:02:42.4]} 14... Qa5 {[%clk 0:02:29]} 15. h3 {[%clk
0:02:41.6]} 15... Ne5 {[%clk 0:02:28.7]} 16. Bb1 {[%clk 0:02:34.2]} 16... a6
{[%clk 0:02:26.8]} 17. Qe3 {[%clk 0:02:26.6]} 17... b5 {[%clk 0:02:24]} 18. cxb5
{[%clk 0:02:24.9]} 18... axb5 {[%clk 0:02:24.9]} 19. Nd5 {[%clk 0:02:19.1]}
19... Bxd5 {[%clk 0:02:23.6]} 20. exd5 {[%clk 0:02:18.4]} 20... b4 {[%clk
0:02:21.9]} 21. Rfd1 {[%clk 0:02:08.2]} 21... Rxc1 {[%clk 0:02:12]} 22. Qxc1
{[%clk 0:02:09.1]} 22... Nd7 {[%clk 0:02:04.1]} 23. Qc6 {[%clk 0:02:03.5]} 23...
Rd8 {[%clk 0:02:03.7]} 24. Be3 {[%clk 0:01:50.3]} 24... Nc5 {[%clk 0:01:55.5]}
25. Bg5 {[%clk 0:01:35.2]} 25... Bf6 {[%clk 0:01:53.4]} 26. Bxf6 {[%clk
0:01:33]} 26... exf6 {[%clk 0:01:54.3]} 27. Re1 {[%clk 0:01:28.3]} 27... Qa7
{[%clk 0:01:54.2]} 28. Qb5 {[%clk 0:01:15]} 28... Rb8 {[%clk 0:01:46.8]} 29. Qc6
{[%clk 0:01:04.8]} 29... Rb6 {[%clk 0:01:30.6]} 30. Qe8+ {[%clk 0:00:59.5]}
30... Kg7 {[%clk 0:01:29.5]} 31. Re7 {[%clk 0:00:59.9]} 31... Qxe7 {[%clk
0:00:50.7]} 32. Qxe7 {[%clk 0:01:00.8]} 32... Ra6 {[%clk 0:00:50]} 33. Qc7
{[%clk 0:00:51.1]} 33... h5 {[%clk 0:00:48.7]} 34. Qb8 {[%clk 0:00:49]} 1-0

[Event "Early-Titled-Tuesday-Blitz-October-24-2023"]
[Site "Chess.com"]
[Date "2023.10.24"]
[Round "9"]
[White "WhiteKnight2612"]
[Black "IMRosen"]
[Result "1-0"]
[WhiteElo "2835"]
[BlackElo "2606"]
[TimeControl "180+1"]
[EndTime "9:41:19 PDT"]
[Termination "WhiteKnight2612 won on time"]

1. Nf3 {[%clk 0:03:00.9]} 1... d5 {[%clk 0:02:53.2]} 2. g3 {[%clk 0:03:00.4]}
2... Nf6 {[%clk 0:02:52.9]} 3. Bg2 {[%clk 0:03:00.7]} 3... e6 {[%clk 0:02:52.3]}
4. O-O {[%clk 0:03:01.4]} 4... Be7 {[%clk 0:02:51.1]} 5. d3 {[%clk 0:03:01.6]}
5... c5 {[%clk 0:02:51]} 6. Nbd2 {[%clk 0:03:01.8]} 6... Nc6 {[%clk 0:02:51.2]}
7. e4 {[%clk 0:03:02.4]} 7... Qc7 {[%clk 0:02:51.9]} 8. Re1 {[%clk 0:03:01.8]}
8... b6 {[%clk 0:02:51.9]} 9. e5 {[%clk 0:03:01.8]} 9... Nd7 {[%clk 0:02:52.1]}
10. Qe2 {[%clk 0:03:01.8]} 10... Bb7 {[%clk 0:02:52.4]} 11. Nf1 {[%clk
0:03:01.5]} 11... h6 {[%clk 0:02:50.5]} 12. h4 {[%clk 0:03:01.9]} 12... a5
{[%clk 0:02:48.9]} 13. Bf4 {[%clk 0:03:01.2]} 13... a4 {[%clk 0:02:46]} 14. a3
{[%clk 0:03:00.1]} 14... O-O-O {[%clk 0:02:40.3]} 15. h5 {[%clk 0:02:58.6]}
15... Ba6 {[%clk 0:02:36.8]} 16. c4 {[%clk 0:02:48.2]} 16... dxc4 {[%clk
0:01:38.7]} 17. dxc4 {[%clk 0:02:49.1]} 17... Qa7 {[%clk 0:01:39.3]} 18. Qc2
{[%clk 0:02:42.3]} 18... Bb7 {[%clk 0:01:39.4]} 19. Rad1 {[%clk 0:02:41.7]}
19... Rhe8 {[%clk 0:01:24.8]} 20. Qh7 {[%clk 0:02:35.4]} 20... Rg8 {[%clk
0:01:16.8]} 21. Ne3 {[%clk 0:02:32]} 21... Na5 {[%clk 0:00:53.4]} 22. Nd2 {[%clk
0:02:26.3]} 22... Bxg2 {[%clk 0:00:51.7]} 23. Kxg2 {[%clk 0:02:27.2]} 23... Qb7+
{[%clk 0:00:52.4]} 24. Kh2 {[%clk 0:02:27.9]} 24... f5 {[%clk 0:00:40.8]} 25.
Qg6 {[%clk 0:02:24.4]} 25... Qc6 {[%clk 0:00:38.7]} 26. Nxf5 {[%clk 0:02:24.4]}
26... exf5 {[%clk 0:00:37.9]} 27. Qxf5 {[%clk 0:02:22.5]} 27... Rgf8 {[%clk
0:00:35.5]} 28. Qg4 {[%clk 0:02:22.3]} 28... Kb7 {[%clk 0:00:30.5]} 29. Ne4
{[%clk 0:02:20.9]} 29... Nxc4 {[%clk 0:00:27.2]} 30. Qxg7 {[%clk 0:02:19.9]}
30... Rfe8 {[%clk 0:00:15.2]} 31. e6 {[%clk 0:02:19.6]} 31... Nf8 {[%clk
0:00:12.4]} 32. Rxd8 {[%clk 0:02:17]} 32... Nxe6 {[%clk 0:00:09.9]} 33. Rxe8
{[%clk 0:02:01.2]} 33... Nxg7 {[%clk 0:00:05.4]} 34. Rxe7+ {[%clk 0:02:01.8]}
34... Ka6 {[%clk 0:00:05.9]} 35. Rxg7 {[%clk 0:02:02.5]} 35... Nxb2 {[%clk
0:00:03.6]} 36. Rg6 {[%clk 0:02:03.2]} 36... Qd5 {[%clk 0:00:03.6]} 37. Rb1
{[%clk 0:02:00.4]} 37... Nc4 {[%clk 0:00:02.4]} 38. Nf6 {[%clk 0:01:58.5]} 38...
Qf5 {[%clk 0:00:02.3]} 39. Re1 {[%clk 0:01:56.1]} 39... Nxa3 {[%clk 0:00:02.6]}
40. Re5 {[%clk 0:01:54.2]} 40... Qc2 {[%clk 0:00:02]} 41. Be3 {[%clk 0:01:50.8]}
41... Nc4 {[%clk 0:00:01.9]} 42. Rxc5 {[%clk 0:01:48]} 1-0

[Event "Early-Titled-Tuesday-Blitz-October-24-2023"]
[Site "Chess.com"]
[Date "2023.10.24"]
[Round "9"]
[White "jk13"]
[Black "brm72"]
[Result "1-0"]
[WhiteElo "2681"]
[BlackElo "2568"]
[TimeControl "180+1"]
[EndTime "9:41:19 PDT"]
[Termination "jk13 won by checkmate"]

1. e4 {[%clk 0:03:00.9]} 1... c5 {[%clk 0:03:00]} 2. c3 {[%clk 0:03:01]} 2... d5
{[%clk 0:02:55.9]} 3. exd5 {[%clk 0:03:01.5]} 3... Qxd5 {[%clk 0:02:56.8]} 4. d4
{[%clk 0:03:01.9]} 4... Nf6 {[%clk 0:02:57.1]} 5. Nf3 {[%clk 0:03:02.6]} 5... e6
{[%clk 0:02:57.4]} 6. Na3 {[%clk 0:03:02.8]} 6... cxd4 {[%clk 0:02:56.9]} 7. Nb5
{[%clk 0:03:02.9]} 7... Qd8 {[%clk 0:02:56.1]} 8. Nbxd4 {[%clk 0:03:02.9]} 8...
Be7 {[%clk 0:02:53.8]} 9. Bd3 {[%clk 0:03:03.4]} 9... O-O {[%clk 0:02:53.4]} 10.
O-O {[%clk 0:03:04.1]} 10... b6 {[%clk 0:02:53.3]} 11. Bg5 {[%clk 0:03:02]}
11... Bb7 {[%clk 0:02:53.1]} 12. Qe2 {[%clk 0:03:00.9]} 12... h6 {[%clk
0:02:52]} 13. Bh4 {[%clk 0:02:54.5]} 13... Qc8 {[%clk 0:02:31.3]} 14. Rfe1
{[%clk 0:02:42]} 14... Nc6 {[%clk 0:02:28.1]} 15. Rad1 {[%clk 0:02:36.2]} 15...
Nxd4 {[%clk 0:02:24.2]} 16. Nxd4 {[%clk 0:02:36.2]} 16... Nd5 {[%clk 0:02:19.1]}
17. Bg3 {[%clk 0:02:27.5]} 17... Rd8 {[%clk 0:02:09]} 18. Bb1 {[%clk 0:02:20.1]}
18... Nf6 {[%clk 0:02:05.8]} 19. Be5 {[%clk 0:02:17.3]} 19... Qc5 {[%clk
0:01:58.5]} 20. Qc2 {[%clk 0:02:11.2]} 20... Kf8 {[%clk 0:01:42.2]} 21. h3
{[%clk 0:02:07.9]} 21... Rd5 {[%clk 0:01:35.1]} 22. Qe2 {[%clk 0:01:32.8]} 22...
Rad8 {[%clk 0:01:29.3]} 23. a3 {[%clk 0:01:28.9]} 23... a6 {[%clk 0:01:16.5]}
24. Ba2 {[%clk 0:01:28.9]} 24... R5d7 {[%clk 0:01:12.6]} 25. Bxe6 {[%clk
0:01:03.4]} 25... Rxd4 {[%clk 0:01:10.4]} 26. cxd4 {[%clk 0:01:02.2]} 26... Qc6
{[%clk 0:01:06.8]} 27. d5 {[%clk 0:01:02.6]} 27... Qc5 {[%clk 0:01:06.3]} 28. b4
{[%clk 0:00:28.1]} 28... Qb5 {[%clk 0:00:56.7]} 29. Qxb5 {[%clk 0:00:28.3]}
29... axb5 {[%clk 0:00:57.6]} 30. d6 {[%clk 0:00:28.9]} 30... fxe6 {[%clk
0:00:56.4]} 31. dxe7+ {[%clk 0:00:29.8]} 31... Kxe7 {[%clk 0:00:57.3]} 32. Rxd8
{[%clk 0:00:29.4]} 32... Kxd8 {[%clk 0:00:58.2]} 33. Bxf6+ {[%clk 0:00:29.7]}
33... gxf6 {[%clk 0:00:59.1]} 34. Rxe6 {[%clk 0:00:29.9]} 34... Bd5 {[%clk
0:00:58.1]} 35. Rd6+ {[%clk 0:00:30]} 35... Ke7 {[%clk 0:00:57.6]} 36. Rxd5
{[%clk 0:00:30.9]} 36... Ke6 {[%clk 0:00:58.5]} 37. Rxb5 {[%clk 0:00:31.1]}
37... f5 {[%clk 0:00:58.9]} 38. Rxb6+ {[%clk 0:00:32]} 38... Kf7 {[%clk
0:00:59.7]} 39. a4 {[%clk 0:00:32.7]} 39... h5 {[%clk 0:00:59.9]} 40. a5 {[%clk
0:00:33.6]} 40... h4 {[%clk 0:01:00.8]} 41. a6 {[%clk 0:00:34.4]} 41... f4
{[%clk 0:01:01.7]} 42. a7 {[%clk 0:00:35.3]} 42... f3 {[%clk 0:01:02.6]} 43.
a8=Q {[%clk 0:00:35.8]} 43... fxg2 {[%clk 0:01:03.5]} 44. Qa7+ {[%clk
0:00:36.6]} 44... Kg8 {[%clk 0:01:03.9]} 45. Rb8# {[%clk 0:00:37.5]} 1-0